fUST/lending_fUST_20250604
["ID","MTS","AMOUNT","RATE_DAILY","PERIOD"]
[364242994,1749047453281,-2165.97,0.0001863,2]
[364242996,1749047453291,-2366.92,0.0001863,2]
[364242998,1749047453300,-556.74,0.0001863,2]
[364243011,1749047453415,-480.69,0.0001863,2]
[364243013,1749047453427,-808.96,0.0001863,2]
[364243015,1749047453437,-605.75,0.0001863,2]
[364243017,1749047453446,-340.0,0.0001863,2]
[364243019,1749047453456,-360.0,0.0001863,2]
[364243021,1749047453466,-440.0,0.0001863,2]
[364243023,1749047453475,-350.0,0.0001863,2]
[364243025,1749047453485,-440.0,0.0001863,2]
[364243027,1749047453494,-440.0,0.0001863,2]
[364243029,1749047453503,-440.0,0.0001863,2]
[364243031,1749047453513,-350.0,0.0001863,2]
[364243033,1749047453523,-440.0,0.0001863,2]
[364243035,1749047453532,-440.0,0.0001863,2]
[364243037,1749047453542,-440.0,0.0001863,2]
[364243039,1749047453552,-503.78,0.0001863,2]
[364243041,1749047453561,-520.24,0.0001863,2]
[364243043,1749047453571,-689.93,0.0001863,2]
[364243045,1749047453580,-440.0,0.0001863,2]
[364243047,1749047453589,-440.0,0.0001863,2]
[364243049,1749047453599,-440.0,0.0001863,2]
[364243051,1749047453608,-440.0,0.0001863,2]
[364243053,1749047453617,-440.0,0.0001863,2]
[364243055,1749047453627,-440.0,0.0001863,2]
[364243057,1749047453637,-964.36,0.0001863,2]
[364243059,1749047453647,-350.0,0.0001863,2]
[364243061,1749047453662,-2437.35,0.0001863,2]
[364243063,1749047453671,-440.0,0.0001863,2]
[364243065,1749047453681,-825.29,0.0001863,2]
[364243067,1749047453690,-12672.94222187,0.00018649,2]
[364243069,1749047453702,-212.90465545,0.00018649,2]
[364243071,1749047453712,-423.69433488,0.00018649,2]
[364243073,1749047453721,-229.45591648,0.00018649,2]
[364243075,1749047453733,-160.0,0.00018649,2]
[364243077,1749047453742,-160.0,0.00018649,2]
[364243079,1749047453752,-160.0,0.00018649,2]
[364243081,1749047453762,-160.0,0.00018649,2]
[364243083,1749047453772,-4421.23937849,0.00018866,2]
[364243085,1749047453782,-151.0,0.000189,2]
[364243087,1749047453792,-500.0,0.00018903,2]
[364243089,1749047453801,-500.0,0.00018903,2]
[364243091,1749047453811,-500.0,0.00018903,2]
[364243093,1749047453821,-500.0,0.00018903,2]
[364243095,1749047453831,-500.0,0.00018903,2]
[364243097,1749047453840,-500.0,0.00018903,2]
[364243099,1749047453850,-500.0,0.00018903,2]
[364243101,1749047453860,-500.0,0.00018903,2]
[364243103,1749047453869,-500.0,0.00018903,2]
[364243105,1749047453879,-500.0,0.00018903,2]
[364243107,1749047453888,-500.0,0.00018903,2]
[364243109,1749047453898,-500.0,0.00018903,2]
[364243111,1749047453907,-500.0,0.00018903,2]
[364243113,1749047453918,-500.0,0.00018903,2]
[364243115,1749047453928,-500.0,0.00018903,2]
[364243117,1749047453937,-500.0,0.00018903,2]
[364243119,1749047453947,-500.0,0.00018903,2]
[364243121,1749047453956,-263.91622065,0.00018903,2]
[364243123,1749047453966,-500.0,0.00018903,2]
[364243125,1749047453976,-500.0,0.00018903,2]
[364243128,1749047453986,-500.0,0.00018903,2]
[364243129,1749047453996,-2160.74,0.00018904,2]
[364243132,1749047454006,-440.0,0.00018904,2]
[364243134,1749047454015,-1722.31,0.00018904,2]
[364243135,1749047454024,-440.0,0.00018904,2]
[364243137,1749047454034,-1122.68,0.00018904,2]
[364243139,1749047454044,-440.0,0.00018904,2]
[364243142,1749047454055,-685.07,0.00018904,2]
[364243144,1749047454065,-1430.6,0.00018904,2]
[364243146,1749047454075,-350.0,0.00018904,2]
[364243148,1749047454085,-466.45,0.00018904,2]
[364243150,1749047454095,-865.22,0.00018904,2]
[364243152,1749047454105,-440.0,0.00018904,2]
[364243154,1749047454115,-2165.97,0.00018904,2]
[364243156,1749047454124,-2366.92,0.00018904,2]
[364243157,1749047454133,-556.74,0.00018904,2]
[364243160,1749047454143,-480.69,0.00018904,2]
[364243162,1749047454153,-808.96,0.00018904,2]
[364243163,1749047454163,-605.75,0.00018904,2]
[364243166,1749047454174,-260.0,0.00018904,2]
[364243168,1749047454183,-350.0,0.00018904,2]
[364243169,1749047454194,-440.0,0.00018904,2]
[364243171,1749047454204,-440.0,0.00018904,2]
[364243174,1749047454214,-340.0,0.00018904,2]
[364243176,1749047454223,-440.0,0.00018904,2]
[364243177,1749047454233,-340.0,0.00018904,2]
[364243179,1749047454242,-503.78,0.00018904,2]
[364243181,1749047454251,-520.24,0.00018904,2]
[364243183,1749047454261,-689.93,0.00018904,2]
[364243185,1749047454271,-440.0,0.00018904,2]
[364243187,1749047454281,-440.0,0.00018904,2]
[364243189,1749047454291,-440.0,0.00018904,2]
[364243191,1749047454301,-440.0,0.00018904,2]
[364243194,1749047454310,-440.0,0.00018904,2]
[364243195,1749047454320,-440.0,0.00018904,2]
[364243198,1749047454330,-964.36,0.00018904,2]
[364243199,1749047454340,-2437.35,0.00018904,2]
[364243202,1749047454350,-440.0,0.00018904,2]
[364243203,1749047454359,-825.29,0.00018904,2]
[364243204,1749047454368,-4421.23937849,0.00019107,2]
[364243205,1749047454377,-434.9,0.00019178,2]
[364243206,1749047454387,-2160.74,0.00019178,2]
[364243207,1749047454396,-440.0,0.00019178,2]
[364243208,1749047454406,-1722.31,0.00019178,2]
[364243209,1749047454415,-440.0,0.00019178,2]
[364243210,1749047454425,-1122.68,0.00019178,2]
[364243211,1749047454434,-511.69251846,0.00019178,2]
[364243213,1749047454444,-685.07,0.00019178,2]
[364243215,1749047454454,-1430.6,0.00019178,2]
[364243217,1749047454464,-466.45,0.00019178,2]
[364243219,1749047454474,-865.22,0.00019178,2]
[364243221,1749047454484,-440.0,0.00019178,2]
[364243223,1749047454494,-2165.97,0.00019178,2]
[364243225,1749047454504,-2366.92,0.00019178,2]
[364243227,1749047454513,-556.74,0.00019178,2]
[364243229,1749047454523,-480.69,0.00019178,2]
[364243231,1749047454533,-808.96,0.00019178,2]
[364243233,1749047454542,-605.75,0.00019178,2]
[364243235,1749047454552,-440.0,0.00019178,2]
[364243238,1749047454562,-440.0,0.00019178,2]
[364243240,1749047454572,-440.0,0.00019178,2]
[364243242,1749047454583,-503.78,0.00019178,2]
[364243243,1749047454593,-520.24,0.00019178,2]
[364243245,1749047454602,-689.93,0.00019178,2]
[364243248,1749047454612,-330.0,0.00019178,2]
[364243250,1749047454621,-340.0,0.00019178,2]
[364243252,1749047454630,-440.0,0.00019178,2]
[364243254,1749047454640,-330.0,0.00019178,2]
[364243256,1749047454651,-330.0,0.00019178,2]
[364243258,1749047454663,-440.0,0.00019178,2]
[364243260,1749047454673,-964.36,0.00019178,2]
[364243262,1749047454684,-2437.35,0.00019178,2]
[364243264,1749047454695,-440.0,0.00019178,2]
[364243265,1749047454705,-825.29,0.00019178,2]
[364243268,1749047454715,-21953.1831602,0.00019178,2]
[364243270,1749047454727,-271.778863,0.00019178,2]
[364243272,1749047454738,-4663.48646117,0.00019329,2]
[364243274,1749047454749,-4421.23937849,0.00019348,2]
[364243276,1749047454758,-157.20561442,0.00019429,2]
[364243278,1749047454767,-2160.74,0.00019452,2]
[364243280,1749047454777,-440.0,0.00019452,2]
[364243282,1749047454786,-1722.31,0.00019452,2]
[364243284,1749047454796,-440.0,0.00019452,2]
[364243286,1749047454805,-1122.68,0.00019452,2]
[364243288,1749047454814,-753.95,0.00019452,2]
[364243290,1749047454824,-685.07,0.00019452,2]
[364243292,1749047454833,-1430.6,0.00019452,2]
[364243294,1749047454842,-466.45,0.00019452,2]
[364243296,1749047454852,-865.22,0.00019452,2]
[364243298,1749047454861,-440.0,0.00019452,2]
[364243300,1749047454871,-2165.97,0.00019452,2]
[364243302,1749047454880,-2366.92,0.00019452,2]
[364243304,1749047454889,-556.74,0.00019452,2]
[364243306,1749047454899,-480.69,0.00019452,2]
[364243308,1749047454909,-808.96,0.00019452,2]
[364243318,1749047454995,-605.75,0.00019452,2]
[364243320,1749047455007,-440.0,0.00019452,2]
[364243322,1749047455017,-273.5,0.00019452,2]
[364243324,1749047455027,-201.88203255,0.00019452,2]
[364243326,1749047455037,-503.78,0.00019452,2]
[364243329,1749047455047,-520.24,0.00019452,2]
[364243331,1749047455057,-689.93,0.00019452,2]
[364243333,1749047455067,-216.26,0.00019452,2]
[364243335,1749047455076,-500.51834689,0.00019452,2]
[364243337,1749047455086,-964.36,0.00019452,2]
[364243339,1749047455095,-2437.35,0.00019452,2]
[364243341,1749047455105,-440.0,0.00019452,2]
[364243343,1749047455114,-683.97,0.00019454,2]
[364243345,1749047455123,-500.0,0.00019454,2]
[364243347,1749047455133,-500.0,0.00019454,2]
[364243349,1749047455143,-500.0,0.00019517,2]
[364243351,1749047455152,-621.09360266,0.00019517,2]
[364243353,1749047455161,-500.0,0.00019517,2]
[364243355,1749047455170,-500.0,0.00019517,2]
[364243357,1749047455179,-500.0,0.00019517,2]
[364243359,1749047455189,-500.0,0.00019517,2]
[364243361,1749047455198,-500.0,0.00019517,2]
[364243363,1749047455207,-421.21542315,0.00019517,2]
[364243365,1749047455217,-500.0,0.00019517,2]
[364243367,1749047455227,-500.0,0.00019517,2]
[364243369,1749047455236,-500.0,0.00019517,2]
[364243371,1749047455246,-500.0,0.00019517,2]
[364243373,1749047455255,-500.0,0.00019517,2]
[364243375,1749047455265,-492.518127,0.00019517,2]
[364243377,1749047455275,-4421.23937849,0.0001959,2]
[364243380,1749047455285,-587.0,0.00019631,2]
[364243381,1749047455295,-587.0,0.00019631,2]
[364243384,1749047455304,-500.0,0.0001964,2]
[364243386,1749047455315,-500.0,0.0001964,2]
[364243388,1749047455324,-600.0,0.0001964,2]
[364243390,1749047455334,-500.0,0.0001964,2]
[364243392,1749047455344,-500.0,0.0001964,2]
[364243394,1749047455354,-683.97,0.00019725,2]
[364243396,1749047455363,-500.0,0.00019725,2]
[364243398,1749047455372,-500.0,0.00019725,2]
[364243400,1749047455382,-2160.74,0.00019726,2]
[364243402,1749047455391,-571.89950509,0.00019726,2]
[364243404,1749047455400,-1722.31,0.00019726,2]
[364243406,1749047455409,-440.0,0.00019726,2]
[364243408,1749047455419,-1122.68,0.00019726,2]
[364243410,1749047455429,-753.95,0.00019726,2]
[364243412,1749047455439,-685.07,0.00019726,2]
[364243414,1749047455449,-1430.6,0.00019726,2]
[364243416,1749047455458,-466.45,0.00019726,2]
[364243418,1749047455468,-865.22,0.00019726,2]
[364243420,1749047455477,-440.0,0.00019726,2]
[364243422,1749047455487,-2165.97,0.00019726,2]
[364243424,1749047455496,-2366.92,0.00019726,2]
[364243426,1749047455506,-556.74,0.00019726,2]
[364243428,1749047455516,-480.69,0.00019726,2]
[364243430,1749047455525,-808.96,0.00019726,2]
[364243432,1749047455536,-605.75,0.00019726,2]
[364243434,1749047455546,-440.0,0.00019726,2]
[364243436,1749047455555,-503.78,0.00019726,2]
[364243438,1749047455565,-520.24,0.00019726,2]
[364243440,1749047455576,-689.93,0.00019726,2]
[364243442,1749047455586,-964.36,0.00019726,2]
[364243444,1749047455595,-2437.35,0.00019726,2]
[364243446,1749047455605,-440.0,0.00019726,2]
[364243448,1749047455614,-184.947,0.00019808,2]
[364243450,1749047455624,-684.0,0.00019828,2]
[364243453,1749047455633,-4421.23937849,0.00019831,2]
[364243455,1749047455642,-423.74812265,0.00019928,2]
[364243456,1749047455653,-3146.1,0.0002,2]
[364243459,1749047455666,-2160.74,0.0002,2]
[364243461,1749047455675,-1722.31,0.0002,2]
[364243463,1749047455684,-440.0,0.0002,2]
[364243465,1749047455694,-1122.68,0.0002,2]
[364243467,1749047455704,-753.95,0.0002,2]
[364243469,1749047455714,-685.07,0.0002,2]
[364243471,1749047455723,-1430.6,0.0002,2]
[364243473,1749047455734,-466.45,0.0002,2]
[364243475,1749047455744,-865.22,0.0002,2]
[364243477,1749047455753,-440.0,0.0002,2]
[364243479,1749047455762,-2165.97,0.0002,2]
[364243481,1749047455771,-2366.92,0.0002,2]
[364243483,1749047455781,-556.74,0.0002,2]
[364243485,1749047455792,-480.69,0.0002,2]
[364243487,1749047455801,-25200.0,0.0002,2]
[364243489,1749047455810,-808.96,0.0002,2]
[364243491,1749047455820,-223.95390513,0.0002,2]
[364243493,1749047455829,-605.75,0.0002,2]
[364243495,1749047455839,-303.72622594,0.0002,2]
[364243497,1749047455849,-430.0,0.0002,4]
[364243499,1749047455858,-430.0,0.0002,7]
[364243501,1749047455867,-503.78,0.0002,2]
[364243503,1749047455877,-520.24,0.0002,2]
[364243505,1749047455887,-300.39179917,0.0002,2]
[364243507,1749047455896,-689.93,0.0002,2]
[364243509,1749047455906,-964.36,0.0002,2]
[364243511,1749047455915,-4000.0,0.0002,4]
[364243513,1749047455925,-2437.35,0.0002,2]
[364243515,1749047455934,-440.0,0.0002,2]
[364243517,1749047455943,-1000.0,0.00020065,2]
[364243519,1749047455953,-1000.0,0.00020065,2]
[364243521,1749047455962,-1000.0,0.00020065,2]
[364243523,1749047455971,-1000.0,0.00020065,2]
[364243525,1749047455981,-1000.0,0.00020065,2]
[364243527,1749047455990,-1000.0,0.00020065,2]
[364243529,1749047455999,-1000.0,0.00020065,2]
[364243532,1749047456009,-500.0,0.00020065,2]
[364243534,1749047456019,-1000.0,0.00020065,2]
[364243536,1749047456029,-1000.0,0.00020065,2]
[364243538,1749047456038,-4421.23937849,0.00020072,2]
[364243540,1749047456048,-1000.0,0.00020188,2]
[364243542,1749047456057,-1000.0,0.00020188,2]
[364243544,1749047456067,-1000.0,0.00020188,2]
[364243546,1749047456076,-1200.0,0.00020188,2]
[364243548,1749047456086,-205.49080572,0.00020188,2]
[364243550,1749047456096,-2160.74,0.00020273,2]
[364243552,1749047456106,-1722.31,0.00020273,2]
[364243554,1749047456115,-440.0,0.00020273,2]
[364243556,1749047456125,-1122.68,0.00020273,2]
[364243558,1749047456134,-753.95,0.00020273,2]
[364243560,1749047456143,-685.07,0.00020273,2]
[364243562,1749047456153,-1430.6,0.00020273,2]
[364243564,1749047456163,-466.45,0.00020273,2]
[364243566,1749047456172,-865.22,0.00020273,2]
[364243568,1749047456181,-440.0,0.00020273,2]
[364243570,1749047456193,-2165.97,0.00020273,2]
[364243572,1749047456202,-2366.92,0.00020273,2]
[364243574,1749047456211,-556.74,0.00020273,2]
[364243576,1749047456221,-480.69,0.00020273,2]
[364243578,1749047456231,-808.96,0.00020273,2]
[364243580,1749047456240,-605.75,0.00020273,2]
[364243582,1749047456250,-503.78,0.00020273,2]
[364243584,1749047456259,-520.24,0.00020273,2]
[364243586,1749047456269,-689.93,0.00020273,2]
[364243588,1749047456278,-964.36,0.00020273,2]
[364243590,1749047456287,-2437.35,0.00020273,2]
[364243592,1749047456297,-440.0,0.00020273,2]
[364243594,1749047456306,-4421.23937849,0.00020314,3]
[364243596,1749047456315,-2160.74,0.00020547,2]
[364243598,1749047456324,-1722.31,0.00020547,2]
[364243600,1749047456335,-440.0,0.00020547,2]
[364243602,1749047456344,-1122.68,0.00020547,2]
[364243604,1749047456354,-753.95,0.00020547,2]
[364243614,1749047456440,-685.07,0.00020547,2]
[364243616,1749047456450,-1430.6,0.00020547,2]
[364243618,1749047456460,-466.45,0.00020547,2]
[364243620,1749047456470,-865.22,0.00020547,2]
[364243622,1749047456479,-440.0,0.00020547,2]
[364243624,1749047456489,-2165.97,0.00020547,2]
[364243626,1749047456499,-2366.92,0.00020547,2]
[364243629,1749047456509,-556.74,0.00020547,2]
[364243631,1749047456519,-480.69,0.00020547,2]
[364243633,1749047456528,-808.96,0.00020547,2]
[364243635,1749047456537,-605.75,0.00020547,2]
[364243637,1749047456548,-503.78,0.00020547,2]
[364243639,1749047456558,-520.24,0.00020547,2]
[364243641,1749047456567,-689.93,0.00020547,2]
[364243643,1749047456577,-964.36,0.00020547,2]
[364243645,1749047456586,-2437.35,0.00020547,2]
[364243647,1749047456596,-440.0,0.00020547,2]
[364243649,1749047456606,-4421.23937849,0.00020555,3]
[364243651,1749047456615,-582.06435634,0.00020559,2]
[364243652,1749047456625,-500.0,0.00020559,2]
[364243654,1749047456634,-683.97,0.00020587,2]
[364243656,1749047456643,-53214.35,0.000206,2]
[364243658,1749047456655,-860.61,0.000206,2]
[364243661,1749047456667,-2410.0,0.000206,2]
[364243663,1749047456676,-1000.0,0.00020613,2]
[364243665,1749047456686,-1000.0,0.00020613,2]
[364243667,1749047456695,-500.0,0.00020613,2]
[364243669,1749047456707,-1000.0,0.00020613,2]
[364243671,1749047456716,-1000.0,0.00020613,2]
[364243673,1749047456726,-570.48775051,0.00020613,2]
[364243675,1749047456739,-1000.0,0.00020613,2]
[364243677,1749047456749,-1000.0,0.00020613,2]
[364243679,1749047456760,-500.0,0.00020669,2]
[364243681,1749047456769,-500.0,0.0002068,2]
[364243683,1749047456781,-500.0,0.0002068,2]
[364243685,1749047456791,-500.0,0.00020721,2]
[364243687,1749047456801,-500.0,0.00020721,2]
[364243689,1749047456811,-500.0,0.00020721,2]
[364243691,1749047456820,-1000.0,0.00020736,2]
[364243693,1749047456830,-600.0,0.00020736,2]
[364243695,1749047456839,-4421.23937849,0.00020797,4]
[364243697,1749047456848,-2160.74,0.00020821,2]
[364243699,1749047456857,-1722.31,0.00020821,2]
[364243701,1749047456867,-440.0,0.00020821,2]
[364243703,1749047456876,-1122.68,0.00020821,2]
[364243705,1749047456885,-753.95,0.00020821,2]
[364243707,1749047456894,-685.07,0.00020821,2]
[364243709,1749047456904,-1430.6,0.00020821,2]
[364243711,1749047456914,-466.45,0.00020821,2]
[364243713,1749047456923,-865.22,0.00020821,2]
[364243715,1749047456932,-176.85436084,0.00020821,2]
[364243717,1749047456942,-2165.97,0.00020821,2]
[364243720,1749047456952,-2366.92,0.00020821,2]
[364243722,1749047456962,-556.74,0.00020821,2]
[364243724,1749047456971,-480.69,0.00020821,2]
[364243726,1749047456980,-808.96,0.00020821,2]
[364243728,1749047456989,-605.75,0.00020821,2]
[364243730,1749047456999,-503.78,0.00020821,2]
[364243732,1749047457010,-520.24,0.00020821,2]
[364243734,1749047457019,-689.93,0.00020821,2]
[364243736,1749047457029,-964.36,0.00020821,2]
[364243738,1749047457039,-2437.35,0.00020821,2]
[364243740,1749047457048,-440.0,0.00020821,2]
[364243742,1749047457058,-250.0,0.00020832,2]
[364243744,1749047457067,-157.20561442,0.00020974,2]
[364243746,1749047457076,-268.10010166,0.00021,2]
[364243748,1749047457086,-2500.99117237,0.00021,2]
[364243750,1749047457095,-200.53135827,0.00021,2]
[364243752,1749047457104,-4421.23937849,0.00021038,4]
[364243754,1749047457114,-151.0,0.0002107,2]
[364243756,1749047457124,-151.0,0.0002107,2]
[364243758,1749047457133,-151.0,0.0002107,2]
[364243760,1749047457143,-500.0,0.0002107,2]
[364243762,1749047457153,-500.0,0.0002107,2]
[364243764,1749047457162,-500.0,0.0002107,2]
[364243766,1749047457172,-154.5268924,0.0002107,2]
[364243768,1749047457181,-2160.74,0.00021095,2]
[364243770,1749047457191,-1722.31,0.00021095,2]
[364243772,1749047457201,-440.0,0.00021095,2]
[364243774,1749047457211,-1122.68,0.00021095,2]
[364243776,1749047457220,-753.95,0.00021095,2]
[364243778,1749047457230,-685.07,0.00021095,2]
[364243780,1749047457240,-1430.6,0.00021095,2]
[364243782,1749047457249,-466.45,0.00021095,2]
[364243784,1749047457259,-865.22,0.00021095,2]
[364243786,1749047457268,-2165.97,0.00021095,2]
[364243788,1749047457277,-2366.92,0.00021095,2]
[364243790,1749047457286,-556.74,0.00021095,2]
[364243792,1749047457295,-480.69,0.00021095,2]
[364243794,1749047457304,-808.96,0.00021095,2]
[364243796,1749047457313,-605.75,0.00021095,2]
[364243798,1749047457322,-503.78,0.00021095,2]
[364243800,1749047457332,-520.24,0.00021095,2]
[364243803,1749047457341,-689.93,0.00021095,2]
[364243805,1749047457350,-964.36,0.00021095,2]
[364243807,1749047457361,-2437.35,0.00021095,2]
[364243809,1749047457370,-440.0,0.00021095,2]
[364243811,1749047457379,-151.0,0.00021097,2]
[364243813,1749047457388,-151.0,0.00021097,2]
[364243815,1749047457397,-151.0,0.00021097,2]
[364243817,1749047457408,-500.0,0.00021097,2]
[364243819,1749047457417,-500.0,0.00021097,2]
[364243821,1749047457426,-500.0,0.00021097,2]
[364243823,1749047457435,-151.0,0.00021125,2]
[364243825,1749047457445,-198.0,0.00021125,2]
[364243827,1749047457454,-204.15406445,0.00021125,2]
[364243829,1749047457463,-294.62755828,0.00021125,2]
[364243831,1749047457473,-370.90412926,0.00021125,2]
[364243833,1749047457483,-500.0,0.00021125,2]
[364243835,1749047457493,-151.0,0.00021152,2]
[364243837,1749047457504,-500.0,0.00021152,2]
[364243839,1749047457517,-151.0,0.0002118,2]
[364243841,1749047457526,-214.02303997,0.0002118,2]
[364243843,1749047457535,-245.0,0.00021207,2]
[364243845,1749047457546,-500.6663336,0.00021228,2]
[364243847,1749047457556,-1000.0,0.00021228,2]
[364243849,1749047457568,-1000.0,0.00021269,2]
[364243852,1749047457578,-1000.0,0.00021269,2]
[364243853,1749047457588,-1000.0,0.00021269,2]
[364243856,1749047457598,-4421.23937849,0.00021279,5]
[364243857,1749047457607,-2160.74,0.00021369,2]
[364243859,1749047457618,-1722.31,0.00021369,2]
[364243861,1749047457628,-440.0,0.00021369,2]
[364243863,1749047457637,-1122.68,0.00021369,2]
[364243865,1749047457648,-753.95,0.00021369,2]
[364243868,1749047457664,-685.07,0.00021369,2]
[364243870,1749047457674,-1430.6,0.00021369,2]
[364243872,1749047457683,-466.45,0.00021369,2]
[364243874,1749047457693,-865.22,0.00021369,2]
[364243876,1749047457704,-2165.97,0.00021369,2]
[364243885,1749047457786,-2366.92,0.00021369,2]
[364243887,1749047457796,-556.74,0.00021369,2]
[364243889,1749047457805,-480.69,0.00021369,2]
[364243891,1749047457815,-808.96,0.00021369,2]
[364243893,1749047457825,-605.75,0.00021369,2]
[364243895,1749047457835,-503.78,0.00021369,2]
[364243897,1749047457844,-520.24,0.00021369,2]
[364243900,1749047457854,-689.93,0.00021369,2]
[364243902,1749047457863,-964.36,0.00021369,2]
[364243904,1749047457872,-2437.35,0.00021369,2]
[364243906,1749047457882,-257.41965127,0.00021369,2]
[364243908,1749047457891,-318.0,0.00021454,2]
[364243910,1749047457902,-823.0,0.00021454,2]
[364243912,1749047457911,-4421.23937849,0.00021521,5]
[364243913,1749047457921,-683.97,0.00021642,2]
[364243916,1749047457930,-2160.74,0.00021643,2]
[364243918,1749047457940,-1722.31,0.00021643,2]
[364243919,1749047457949,-440.0,0.00021643,2]
[364243922,1749047457959,-1122.68,0.00021643,2]
[364243923,1749047457968,-753.95,0.00021643,2]
[364243926,1749047457979,-685.07,0.00021643,2]
[364243928,1749047457989,-1430.6,0.00021643,2]
[364243930,1749047457999,-466.45,0.00021643,2]
[364243932,1749047458009,-865.22,0.00021643,2]
[364243934,1749047458019,-2165.97,0.00021643,2]
[364243936,1749047458029,-2366.92,0.00021643,2]
[364243938,1749047458039,-556.74,0.00021643,2]
[364243940,1749047458049,-480.69,0.00021643,2]
[364243942,1749047458058,-808.96,0.00021643,2]
[364243944,1749047458069,-605.75,0.00021643,2]
[364243946,1749047458078,-503.78,0.00021643,2]
[364243948,1749047458088,-520.24,0.00021643,2]
[364243950,1749047458099,-689.93,0.00021643,2]
[364243952,1749047458109,-964.36,0.00021643,2]
[364243954,1749047458119,-2437.35,0.00021643,2]
[364243956,1749047458130,-423.74812265,0.00021723,2]
[364243958,1749047458140,-4421.23937849,0.00021762,5]
[364243960,1749047458150,-1500.0,0.00021817,2]
[364243963,1749047458160,-256.12305451,0.00021861,2]
[364243965,1749047458170,-1888.0,0.00021861,2]
[364243966,1749047458179,-500.0,0.00021861,2]
[364243968,1749047458189,-500.0,0.00021861,2]
[364243970,1749047458198,-207.4,0.00021861,2]
[364243972,1749047458209,-500.0,0.00021861,2]
[364243974,1749047458219,-500.0,0.00021861,2]
[364243976,1749047458228,-500.0,0.00021861,2]
[364243978,1749047458239,-5000.0,0.00021861,2]
[364243980,1749047458249,-500.0,0.00021861,2]
[364243982,1749047458259,-500.0,0.00021861,2]
[364243984,1749047458268,-500.0,0.00021861,2]
[364243986,1749047458278,-500.0,0.00021861,2]
[364243988,1749047458287,-500.0,0.00021861,2]
[364243990,1749047458297,-500.0,0.00021861,2]
[364243992,1749047458307,-500.0,0.00021861,2]
[364243995,1749047458317,-500.0,0.00021861,2]
[364243997,1749047458327,-500.0,0.00021861,2]
[364243998,1749047458336,-500.0,0.00021861,2]
[364244000,1749047458345,-53214.35,0.000219,2]
[364244003,1749047458355,-860.61,0.000219,2]
[364244005,1749047458364,-2410.0,0.000219,2]
[364244007,1749047458373,-1957.856,0.00021916,2]
[364244009,1749047458384,-2160.74,0.00021917,2]
[364244011,1749047458394,-1722.31,0.00021917,2]
[364244012,1749047458404,-440.0,0.00021917,2]
[364244014,1749047458414,-1122.68,0.00021917,2]
[364244017,1749047458425,-753.95,0.00021917,2]
[364244019,1749047458436,-685.07,0.00021917,2]
[364244021,1749047458446,-1430.6,0.00021917,2]
[364244023,1749047458457,-466.45,0.00021917,2]
[364244025,1749047458467,-865.22,0.00021917,2]
[364244027,1749047458476,-2165.97,0.00021917,2]
[364244028,1749047458486,-2366.92,0.00021917,2]